lending/lending_fUSD_20240721
["ID","MTS","AMOUNT","RATE_DAILY","PERIOD"]
[332837864,1721562533797,-694.74,0.00045205,60]
[332837865,1721562533829,-500.0,0.00045205,60]
[332837866,1721562533861,-500.0,0.00045205,60]
[332837867,1721562533896,-351.49478741,0.00045205,60]
[332837868,1721562533931,-500.0,0.00045205,60]
[332837869,1721562533965,-500.0,0.00045205,60]
[332837870,1721562534000,-802.38,0.00045205,60]
[332837871,1721562534034,-500.0,0.00045205,60]
[332837872,1721562534078,-546.0,0.00045205,60]
[332837873,1721562534112,-1262.18,0.00045205,60]
[332837874,1721562534147,-1932.95,0.00045205,60]
[332837875,1721562534184,-911.09,0.00045205,60]
[332837876,1721562534217,-500.0,0.00045205,60]
[332837877,1721562534250,-500.0,0.00045205,60]
[332837878,1721562534282,-1154.95,0.00045205,60]
[332837879,1721562534320,-500.0,0.00045205,60]
[332837880,1721562534356,-1956.26,0.00045205,60]
[332837881,1721562534389,-500.0,0.00045205,60]
[332837882,1721562534422,-500.0,0.00045205,60]
[332837883,1721562534455,-500.0,0.00045205,60]
[332837884,1721562534488,-916.91,0.00045205,60]
[332837885,1721562534521,-500.0,0.00045205,60]
[332837886,1721562534560,-504.97103687,0.00045205,60]
[332837887,1721562534595,-500.0,0.00045205,60]
[332837888,1721562534629,-1923.27,0.00045205,60]
[332837889,1721562534664,-1208.28,0.00045205,60]
[332837890,1721562534697,-694.37,0.00045205,60]
[332837891,1721562534730,-1666.33,0.00045205,60]
[332837892,1721562534764,-500.0,0.00045205,60]
[332837893,1721562534797,-500.0,0.00045205,60]
[332837894,1721562534833,-500.0,0.00045205,60]
[332837895,1721562534867,-500.0,0.00045205,60]
[332837896,1721562534901,-500.0,0.00045205,60]
[332837897,1721562534936,-605.85,0.00045205,60]
[332837898,1721562534972,-499.09005713,0.00045205,60]
[332837899,1721562535007,-500.0,0.00045205,60]
[332837900,1721562535041,-500.0,0.00045205,60]
[332837901,1721562535081,-1010.64454039,0.00045205,60]
[332837902,1721562535115,-1044.79,0.00045205,60]
[332837903,1721562535147,-514.42235212,0.00045205,60]
[332837904,1721562535182,-1993.49,0.00045205,60]
[332837905,1721562535216,-500.0,0.00045205,60]
[332837906,1721562535248,-2607.43,0.00045205,60]
[332837907,1721562535280,-2442.5,0.00045205,60]
[332837908,1721562535312,-500.0,0.00045205,60]
[332837909,1721562535343,-1156.27,0.00045205,60]
[332837910,1721562535376,-614.69,0.00045205,60]
[332837911,1721562535409,-857.7,0.00045205,60]
[332837912,1721562535445,-1651.31,0.00045205,60]
[332837913,1721562535480,-500.0,0.00045205,60]
[332837914,1721562535514,-964.54,0.00045205,60]
[332837915,1721562535551,-500.0,0.00045205,60]
[332837916,1721562535586,-500.0,0.00045205,60]
[332837917,1721562535619,-1410.41,0.00045205,60]
[332837918,1721562535652,-500.0,0.00045205,60]
[332837919,1721562535685,-1976.74,0.00045205,60]
[332837920,1721562535719,-500.0,0.00045205,60]
[332837921,1721562535752,-500.0,0.00045205,60]
[332837922,1721562535787,-500.0,0.00045205,60]
[332837923,1721562535820,-500.0,0.00045205,60]
[332837924,1721562535854,-1210.42,0.00045205,60]
[332837925,1721562535888,-500.0,0.00045205,60]
[332837926,1721562535923,-1298.71,0.00045205,60]
[332837927,1721562535958,-2870.38,0.00045205,60]
[332837928,1721562535993,-1397.0,0.00045205,60]
[332837929,1721562536027,-1090.78,0.00045205,60]
[332837930,1721562536062,-500.0,0.00045205,60]
[332837931,1721562536099,-975.35,0.00045205,60]
[332837932,1721562536131,-500.0,0.00045205,60]
[332837933,1721562536165,-500.0,0.00045205,60]
[332837934,1721562536383,-975.06,0.00045205,60]
[332837935,1721562536417,-588.03,0.00045205,60]
[332837936,1721562536454,-3219.97,0.00045205,60]
[332837937,1721562536487,-500.0,0.00045205,60]
[332837938,1721562536520,-1233.64,0.00045205,60]
[332837939,1721562536555,-500.0,0.00045205,60]
[332837940,1721562536592,-4349.87,0.00045205,60]
[332837941,1721562536626,-897.27,0.00045205,60]
[332837942,1721562536660,-500.0,0.00045205,60]
[332837943,1721562536696,-779.84,0.00045205,60]
[332837944,1721562536729,-2831.42,0.00045205,60]
[332837945,1721562536763,-500.0,0.00045205,60]
[332837946,1721562536796,-5862.38,0.00045205,21]
[332837947,1721562536833,-797.05,0.00045205,60]
[332837948,1721562536866,-1449.32,0.00045205,60]
[332837949,1721562536897,-150.0,0.00045205,60]
[332837950,1721562536930,-611.71,0.00045205,60]
[332837951,1721562536963,-500.0,0.00045205,60]
[332837952,1721562536995,-2307.85,0.00045205,60]
[332837953,1721562537030,-1220.31,0.00045205,60]
[332837954,1721562537063,-1547.85,0.00045205,60]
[332837955,1721562537100,-1404.45,0.00045205,60]
[332837956,1721562537134,-586.57978525,0.00045205,60]
[332837957,1721562537168,-500.0,0.00045205,60]
[332837958,1721562537201,-300.85064279,0.00045205,60]
[332837959,1721562537233,-500.0,0.00045205,60]
[332837960,1721562537266,-500.0,0.00045205,60]
[332837961,1721562537298,-2145.84,0.00045205,60]
[332837962,1721562537331,-771.19,0.00045205,60]
[332837963,1721562537363,-558.3,0.00045205,60]
[332837964,1721562537395,-2587.27,0.00045205,60]
[332837965,1721562537427,-892.89,0.00045205,60]
[332837966,1721562537459,-1698.04,0.00045205,60]
[332837967,1721562537491,-500.0,0.00045205,60]
[332837968,1721562537523,-1673.38,0.00045205,60]
[332837969,1721562537556,-4298.51,0.00045205,60]
[332837970,1721562537590,-755.63,0.00045205,60]
[332837971,1721562537622,-500.0,0.00045205,60]
[332837972,1721562537654,-264.34496799,0.00045205,60]
[332837973,1721562537686,-1946.7,0.00045205,60]
[332837974,1721562537718,-500.0,0.00045205,60]
[332837975,1721562537756,-976.36,0.00045205,60]
[332837976,1721562537789,-1926.96,0.00045205,60]
[332837977,1721562537822,-500.0,0.00045205,60]
[332837978,1721562537854,-1035.15,0.00045205,60]
[332837979,1721562537888,-500.0,0.00045205,60]
[332837980,1721562537921,-1557.66,0.00045205,60]
[332837981,1721562537957,-500.0,0.00045205,60]
[332837982,1721562537990,-1158.49,0.00045205,60]
[332837983,1721562538023,-500.0,0.00045205,60]
[332837984,1721562538057,-500.0,0.00045205,60]
[332837985,1721562538089,-991.73,0.00045205,60]
[332837986,1721562538123,-500.0,0.00045205,60]
[332837987,1721562538160,-2557.51,0.00045205,60]
[332837988,1721562538195,-765.24,0.00045205,60]
[332837989,1721562538228,-2269.25,0.00045205,60]
[332837990,1721562538261,-500.0,0.00045205,60]
[332837991,1721562538294,-500.0,0.00045205,60]
[332837992,1721562538328,-387.73247199,0.00045205,60]
[332837993,1721562538361,-1069.04,0.00045205,60]
[332837994,1721562538393,-509.72,0.00045205,60]
[332837995,1721562538426,-1450.95,0.00045205,60]
[332837996,1721562538459,-500.0,0.00045205,60]
[332837997,1721562538492,-11013.47,0.00045205,60]
[332837998,1721562538524,-3431.18,0.00045205,60]
[332837999,1721562538557,-151.0,0.0004526,120]
[332838000,1721562538590,-151.0,0.0004537,120]
[332838001,1721562538623,-728.0,0.00045479,60]
[332838002,1721562538656,-833.33,0.00045479,120]
[332838003,1721562538688,-3000.0,0.00045479,120]
[332838004,1721562538721,-755.16,0.00045479,120]
[332838005,1721562538753,-500.0,0.00045479,30]
[332838006,1721562538786,-500.0,0.00045479,30]
[332838007,1721562538820,-600.0,0.00045479,30]
[332838008,1721562538852,-500.0,0.00045479,30]
[332838009,1721562538885,-500.0,0.00045479,60]
[332838010,1721562538917,-292.76749658,0.00045479,60]
[332838011,1721562538953,-500.0,0.00045479,60]
[332838012,1721562538989,-500.0,0.00045479,60]
[332838013,1721562539023,-500.0,0.00045479,60]
[332838014,1721562539058,-500.0,0.00045479,60]
[332838015,1721562539093,-316.67614959,0.00045479,60]
[332838016,1721562539128,-500.0,0.00045479,60]
[332838017,1721562539163,-500.0,0.00045479,60]
[332838018,1721562539197,-500.0,0.00045479,60]
[332838019,1721562539231,-500.0,0.00045479,60]
[332838020,1721562539265,-500.0,0.00045479,60]
[332838021,1721562539297,-500.0,0.00045479,60]
[332838022,1721562539332,-500.0,0.00045479,60]
[332838023,1721562539365,-500.0,0.00045479,60]
[332838024,1721562539398,-500.0,0.00045479,60]
[332838025,1721562539431,-500.0,0.00045479,60]
[332838026,1721562539464,-500.0,0.00045479,60]
[332838027,1721562539496,-1049.68,0.00045479,60]
[332838028,1721562539528,-500.0,0.00045479,60]
[332838029,1721562539562,-500.0,0.00045479,60]
[332838030,1721562539594,-500.0,0.00045479,60]
[332838031,1721562539628,-429.23701813,0.00045479,60]
[332838032,1721562539661,-500.0,0.00045479,60]
[332838033,1721562539694,-500.0,0.00045479,60]
[332838034,1721562539727,-596.0,0.00045479,60]
[332838035,1721562539759,-500.0,0.00045479,60]
[332838036,1721562539791,-565.70220281,0.00045479,60]
[332838037,1721562539824,-500.0,0.00045479,60]
[332838038,1721562540048,-153.88984991,0.00045479,60]
[332838039,1721562540089,-500.0,0.00045479,60]
[332838040,1721562540127,-500.0,0.00045479,60]
[332838041,1721562540164,-500.0,0.00045479,60]
[332838042,1721562540198,-500.0,0.00045479,60]
[332838043,1721562540236,-500.0,0.00045479,60]
[332838044,1721562540272,-500.0,0.00045479,60]
[332838045,1721562540308,-500.0,0.00045479,60]
[332838046,1721562540342,-500.0,0.00045479,60]
[332838047,1721562540377,-500.0,0.00045479,60]
[332838048,1721562540413,-500.0,0.00045479,60]
[332838049,1721562540449,-500.0,0.00045479,60]
[332838050,1721562540483,-500.0,0.00045479,60]
[332838051,1721562540515,-583.69,0.00045479,60]
[332838052,1721562540549,-627.21,0.00045479,60]
[332838053,1721562540582,-500.0,0.00045479,60]
[332838054,1721562540615,-500.0,0.00045479,60]
[332838055,1721562540648,-1086.76,0.00045479,60]
[332838056,1721562540680,-1232.08,0.00045479,60]
[332838057,1721562540712,-500.0,0.00045479,60]
[332838058,1721562540746,-906.24,0.00045479,60]
[332838059,1721562540780,-500.0,0.00045479,60]
[332838060,1721562540812,-1235.37,0.00045479,60]
[332838061,1721562540845,-500.0,0.00045479,60]
[332838062,1721562540879,-1269.86,0.00045479,60]
[332838063,1721562540913,-500.0,0.00045479,60]
[332838064,1721562540949,-500.0,0.00045479,60]
[332838065,1721562540982,-200.0,0.00045479,60]
[332838066,1721562541016,-500.0,0.00045479,60]
[332838067,1721562541049,-500.0,0.00045479,60]
[332838068,1721562541086,-500.0,0.00045479,60]
[332838069,1721562541119,-500.0,0.00045479,60]
[332838070,1721562541151,-514.86,0.00045479,60]
[332838071,1721562541184,-500.0,0.00045479,60]
[332838072,1721562541218,-500.0,0.00045479,60]
[332838073,1721562541251,-573.37,0.00045479,60]
[332838074,1721562541284,-504.56893395,0.00045479,60]
[332838075,1721562541316,-1000.0,0.00045479,60]
[332838076,1721562541348,-500.0,0.00045479,60]
[332838077,1721562541380,-724.14,0.00045479,60]
[332838078,1721562541412,-644.44,0.00045479,60]
[332838079,1721562541444,-500.0,0.00045479,60]
[332838080,1721562541476,-500.0,0.00045479,60]
[332838081,1721562541508,-604.49,0.00045479,60]
[332838082,1721562541540,-556.68,0.00045479,60]
[332838083,1721562541574,-500.0,0.00045479,60]
[332838084,1721562541607,-298.58183351,0.00045479,60]
[332838085,1721562541639,-777.65,0.00045479,60]
[332838086,1721562541670,-761.21,0.00045479,60]
[332838087,1721562541702,-500.0,0.00045479,60]
[332838088,1721562541735,-500.0,0.00045479,60]
[332838089,1721562541767,-1228.36,0.00045479,60]
[332838090,1721562541799,-580.68,0.00045479,60]
[332838091,1721562541830,-500.0,0.00045479,60]
[332838092,1721562541861,-500.0,0.00045479,60]
[332838093,1721562541896,-500.0,0.00045479,60]
[332838094,1721562541934,-500.0,0.00045479,60]
[332838095,1721562541969,-688.11,0.00045479,60]
[332838096,1721562542000,-500.0,0.00045479,60]
[332838097,1721562542031,-1135.36,0.00045479,60]
[332838098,1721562542064,-1179.49,0.00045479,60]
[332838099,1721562542096,-500.0,0.00045479,60]
[332838100,1721562542129,-500.0,0.00045479,60]
[332838101,1721562542163,-587.66,0.00045479,60]
[332838102,1721562542197,-945.04,0.00045479,60]
[332838103,1721562542229,-247.2392369,0.00045479,60]
[332838104,1721562542261,-500.0,0.00045479,60]
[332838105,1721562542294,-500.0,0.00045479,60]
[332838106,1721562542330,-500.0,0.00045479,60]
[332838107,1721562542363,-775.44,0.00045479,60]
[332838108,1721562542397,-748.56,0.00045479,60]
[332838109,1721562542433,-501.64565015,0.00045479,60]
[332838110,1721562542473,-631.09,0.00045479,60]
[332838111,1721562542514,-555.58,0.00045479,60]
[332838112,1721562542547,-500.0,0.00045479,60]
[332838113,1721562542581,-774.16,0.00045479,60]
[332838114,1721562542613,-631.09,0.00045479,60]
[332838115,1721562542644,-1597.81,0.00045479,60]
[332838116,1721562542676,-500.0,0.00045479,60]
[332838117,1721562542707,-962.17,0.00045479,60]
[332838118,1721562542739,-500.0,0.00045479,60]
[332838119,1721562542772,-500.0,0.00045479,60]
[332838120,1721562542805,-500.0,0.00045479,60]
[332838121,1721562542838,-500.0,0.00045479,60]
[332838122,1721562542870,-500.0,0.00045479,60]
[332838123,1721562542902,-767.96,0.00045479,60]
[332838124,1721562542935,-500.0,0.00045479,60]
[332838125,1721562542968,-528.85,0.00045479,60]
[332838126,1721562543000,-500.0,0.00045479,60]
[332838127,1721562543033,-500.0,0.00045479,60]
[332838128,1721562543067,-500.0,0.00045479,60]
[332838129,1721562543105,-500.0,0.00045479,60]
[332838130,1721562543140,-609.59,0.00045479,60]
[332838131,1721562543175,-500.0,0.00045479,60]
[332838132,1721562543213,-658.66,0.00045479,60]
[332838133,1721562543248,-1294.17,0.00045479,60]
[332838134,1721562543284,-918.46,0.00045479,60]
[332838135,1721562543319,-613.96,0.00045479,60]
[332838136,1721562543354,-575.24,0.00045479,60]
[332838137,1721562543388,-500.0,0.00045479,60]
[332838138,1721562543422,-744.63,0.00045479,60]
[332838139,1721562543458,-1861.87,0.00045479,60]
[332838140,1721562543493,-599.7,0.00045479,60]
[332838141,1721562543529,-500.0,0.00045479,60]
[332838142,1721562543565,-500.0,0.00045479,60]
[332838143,1721562543788,-714.25,0.00045479,60]
[332838144,1721562543826,-996.46,0.00045479,60]
[332838145,1721562543864,-500.0,0.00045479,60]
[332838146,1721562543902,-1084.78,0.00045479,60]
[332838147,1721562543941,-2388.81,0.00045479,60]
[332838148,1721562543978,-500.0,0.00045479,60]
[332838149,1721562544014,-503.56089378,0.00045479,60]
[332838150,1721562544050,-500.0,0.00045479,60]
[332838151,1721562544089,-598.93,0.00045479,60]
[332838152,1721562544127,-1303.3,0.00045479,60]
[332838153,1721562544164,-500.0,0.00045479,60]
[332838154,1721562544201,-505.77386419,0.00045479,60]
[332838155,1721562544236,-788.43,0.00045479,60]
[332838156,1721562544271,-500.0,0.00045479,60]
[332838157,1721562544306,-746.44,0.00045479,60]
[332838158,1721562544339,-1276.61,0.00045479,60]
[332838159,1721562544374,-558.18,0.00045479,60]
[332838160,1721562544409,-670.72,0.00045479,60]
[332838161,1721562544443,-542.49,0.00045479,60]
[332838162,1721562544478,-562.88,0.00045479,60]
[332838163,1721562544512,-398.52990242,0.00045479,60]
[332838164,1721562544547,-500.0,0.00045479,60]
[332838165,1721562544583,-500.0,0.00045479,60]
[332838166,1721562544619,-500.0,0.00045479,60]
[332838167,1721562544654,-500.0,0.00045479,60]
[332838168,1721562544688,-500.0,0.00045479,60]
[332838169,1721562544723,-500.0,0.00045479,60]
[332838170,1721562544758,-592.17,0.00045479,60]
[332838171,1721562544792,-606.93407117,0.00045479,60]
[332838172,1721562544831,-500.0,0.00045479,60]
[332838173,1721562544870,-500.0,0.00045479,60]
[332838174,1721562544907,-1623.76,0.00045479,60]
[332838175,1721562544948,-905.81,0.00045479,60]
[332838176,1721562544985,-491.94130976,0.00045479,60]
[332838177,1721562545022,-500.0,0.00045479,60]
[332838178,1721562545059,-500.0,0.00045479,60]
[332838179,1721562545095,-500.0,0.00045479,60]
[332838180,1721562545132,-500.0,0.00045479,60]
[332838181,1721562545167,-500.0,0.00045479,60]
[332838182,1721562545203,-598.73,0.00045479,60]
[332838183,1721562545240,-912.84,0.00045479,60]
[332838184,1721562545275,-500.0,0.00045479,60]
[332838185,1721562545315,-500.0,0.00045479,60]
[332838186,1721562545349,-500.0,0.00045479,60]
[332838187,1721562545384,-500.0,0.00045479,60]
[332838188,1721562545419,-500.0,0.00045479,60]
[332838189,1721562545454,-500.0,0.00045479,60]
[332838190,1721562545489,-500.0,0.00045479,60]
[332838191,1721562545523,-500.0,0.00045479,60]
[332838192,1721562545561,-615.66545764,0.00045479,60]
[332838193,1721562545596,-1434.64,0.00045479,60]
[332838194,1721562545632,-691.27,0.00045479,60]
[332838195,1721562545667,-500.0,0.00045479,60]
[332838196,1721562545701,-500.0,0.00045479,60]
[332838197,1721562545734,-500.0,0.00045479,60]
[332838198,1721562545767,-500.0,0.00045479,60]
[332838199,1721562545800,-500.0,0.00045479,60]
[332838200,1721562545835,-500.0,0.00045479,60]
[332838201,1721562545868,-764.64,0.00045479,60]
[332838202,1721562545901,-545.67,0.00045479,60]
[332838203,1721562545938,-229.90392355,0.00045479,60]
[332838204,1721562545973,-500.0,0.00045479,60]
[332838205,1721562546008,-500.0,0.00045479,60]
[332838206,1721562546043,-500.0,0.00045479,60]
[332838207,1721562546081,-548.74,0.00045479,60]
[332838208,1721562546120,-500.0,0.00045479,60]
[332838209,1721562546162,-1666.69,0.00045479,60]
[332838210,1721562546198,-1260.61,0.00045479,60]
[332838211,1721562546233,-500.0,0.00045479,60]
[332838212,1721562546269,-500.0,0.00045479,60]
[332838213,1721562546303,-504.64059908,0.00045479,60]
[332838214,1721562546338,-555.93,0.00045479,60]
[332838215,1721562546373,-500.0,0.00045479,60]
[332838216,1721562546408,-841.26,0.00045479,60]
[332838217,1721562546441,-556.17,0.00045479,60]
[332838218,1721562546474,-583.12,0.00045479,60]
[332838219,1721562546508,-611.71,0.00045479,60]
[332838220,1721562546540,-860.69,0.00045479,60]
[332838221,1721562546576,-500.0,0.00045479,60]
[332838222,1721562546610,-744.21,0.00045479,60]
[332838223,1721562546642,-537.23,0.00045479,60]
[332838224,1721562546676,-500.0,0.00045479,60]
[332838225,1721562546712,-500.0,0.00045479,60]
[332838226,1721562546749,-531.46351278,0.00045479,60]
[332838227,1721562546784,-907.17,0.00045479,60]
[332838228,1721562546816,-500.0,0.00045479,60]
[332838229,1721562546848,-500.0,0.00045479,60]
[332838230,1721562546882,-919.51,0.00045479,60]
[332838231,1721562546915,-500.0,0.00045479,60]
[332838232,1721562546949,-500.0,0.00045479,60]
[332838233,1721562546984,-500.0,0.00045479,60]
[332838234,1721562547018,-500.0,0.00045479,60]
[332838235,1721562547053,-929.49,0.00045479,60]
[332838236,1721562547089,-500.0,0.00045479,60]
[332838237,1721562547124,-757.82,0.00045479,60]
[332838238,1721562547158,-500.0,0.00045479,60]
[332838239,1721562547192,-500.0,0.00045479,60]
[332838240,1721562547226,-500.0,0.00045479,60]
[332838241,1721562547265,-500.0,0.00045479,60]
[332838242,1721562547298,-991.31,0.00045479,60]
[332838243,1721562547332,-500.0,0.00045479,60]
[332838244,1721562547366,-995.47,0.00045479,60]
[332838245,1721562547399,-1684.14,0.00045479,60]
[332838246,1721562547432,-500.0,0.00045479,60]
[332838247,1721562547667,-770.43,0.00045479,60]
[332838248,1721562547705,-794.71,0.00045479,60]
[332838249,1721562547743,-500.0,0.00045479,60]
[332838250,1721562547779,-500.0,0.00045479,60]
[332838251,1721562547815,-500.0,0.00045479,60]
[332838252,1721562547849,-515.00672308,0.00045479,60]
[332838253,1721562547882,-389.37584334,0.00045479,60]
[332838254,1721562547918,-756.47,0.00045479,60]
[332838255,1721562547954,-1355.1,0.00045479,60]
[332838256,1721562547989,-500.0,0.00045479,60]
[332838257,1721562548025,-500.0,0.00045479,60]
[332838258,1721562548062,-500.0,0.00045479,60]
[332838259,1721562548098,-1476.27,0.00045479,60]
[332838260,1721562548134,-646.14,0.00045479,60]
[332838261,1721562548170,-461.96999251,0.00045479,60]
[332838262,1721562548207,-653.84,0.00045479,60]
[332838263,1721562548243,-500.0,0.00045479,60]
[332838264,1721562548278,-500.0,0.00045479,60]
[332838265,1721562548312,-1587.36,0.00045479,60]
[332838266,1721562548348,-1034.87,0.00045479,60]
[332838267,1721562548382,-470.15201934,0.00045479,60]
[332838268,1721562548417,-2193.88,0.00045479,60]
[332838269,1721562548453,-1249.02,0.00045479,60]
[332838270,1721562548490,-1905.81,0.00045479,60]
[332838271,1721562548526,-500.0,0.00045479,60]
[332838272,1721562548563,-504.86113545,0.00045479,60]
[332838273,1721562548600,-1105.89,0.00045479,60]
[332838274,1721562548636,-1263.86,0.00045479,60]
[332838275,1721562548672,-500.0,0.00045479,60]
[332838276,1721562548708,-917.61,0.00045479,60]
[332838277,1721562548744,-500.0,0.00045479,60]
[332838278,1721562548781,-1549.16,0.00045479,60]
[332838279,1721562548817,-500.0,0.00045479,60]
[332838280,1721562548854,-500.0,0.00045479,60]
[332838281,1721562548891,-2094.02,0.00045479,60]
[332838282,1721562548926,-247.99718009,0.00045479,60]
[332838283,1721562548964,-500.0,0.00045479,60]
[332838284,1721562549002,-1771.08,0.00045479,60]
[332838285,1721562549040,-500.0,0.00045479,60]
[332838286,1721562549077,-500.0,0.00045479,60]
[332838287,1721562549124,-500.0,0.00045479,60]
[332838288,1721562549161,-950.12,0.00045479,60]
[332838289,1721562549205,-847.76,0.00045479,60]
[332838290,1721562549242,-1765.44,0.00045479,60]
[332838291,1721562549279,-932.75,0.00045479,60]
[332838292,1721562549315,-1544.42,0.00045479,60]
[332838293,1721562549350,-500.0,0.00045479,60]
[332838294,1721562549387,-790.55,0.00045479,60]
[332838295,1721562549423,-500.0,0.00045479,60]
[332838296,1721562549458,-500.0,0.00045479,60]
[332838298,1721562549494,-984.42,0.00045479,60]
[332838299,1721562549532,-831.17,0.00045479,60]
[332838300,1721562549569,-532.82,0.00045479,60]
[332838301,1721562549608,-500.0,0.00045479,60]
[332838302,1721562549647,-581.87,0.00045479,60]
[332838303,1721562549686,-946.96,0.00045479,60]
[332838304,1721562549724,-702.37,0.00045479,60]
[332838305,1721562549762,-1583.64,0.00045479,60]
[332838306,1721562549799,-500.0,0.00045479,60]
[332838307,1721562549837,-500.0,0.00045479,60]
[332838308,1721562549874,-500.0,0.00045479,60]
[332838309,1721562549913,-500.0,0.00045479,60]
[332838310,1721562549953,-1587.58,0.00045479,60]
[332838311,1721562549991,-539.61,0.00045479,60]
[332838312,1721562550029,-500.0,0.00045479,60]
[332838313,1721562550066,-500.0,0.00045479,60]
[332838314,1721562550107,-500.0,0.00045479,60]
[332838315,1721562550144,-1013.58,0.00045479,60]
[332838316,1721562550184,-2048.3,0.00045479,60]
[332838317,1721562550221,-1686.99,0.00045479,60]
[332838318,1721562550256,-500.0,0.00045479,60]
[332838319,1721562550292,-500.0,0.00045479,60]
[332838320,1721562550327,-500.0,0.00045479,60]
[332838321,1721562550361,-500.0,0.00045479,60]
[332838322,1721562550395,-1366.59,0.00045479,60]
[332838323,1721562550430,-1659.73,0.00045479,60]
[332838324,1721562550465,-500.0,0.00045479,60]
[332838325,1721562550499,-909.73,0.00045479,60]
[332838326,1721562550532,-580.4,0.00045479,60]
[332838327,1721562550568,-500.0,0.00045479,60]
[332838328,1721562550602,-500.0,0.00045479,60]
[332838329,1721562550636,-2376.13,0.00045479,60]
[332838330,1721562550671,-913.7,0.00045479,60]
[332838331,1721562550704,-500.0,0.00045479,60]
[332838332,1721562550738,-500.0,0.00045479,60]
[332838333,1721562550775,-1861.5,0.00045479,60]
[332838334,1721562550814,-500.0,0.00045479,60]
[332838335,1721562550851,-1403.22,0.00045479,60]
[332838336,1721562550886,-500.0,0.00045479,60]
[332838337,1721562550922,-504.63938144,0.00045479,60]
[332838338,1721562550959,-1119.61,0.00045479,60]
[332838339,1721562550996,-150.0,0.00045479,60]
[332838340,1721562551031,-500.0,0.00045479,60]
[332838341,1721562551067,-500.0,0.00045479,60]
[332838342,1721562551104,-1244.18,0.00045479,60]
[332838343,1721562551141,-500.0,0.00045479,60]
[332838344,1721562551177,-500.0,0.00045479,60]
[332838345,1721562551213,-1864.71,0.00045479,60]
[332838346,1721562551249,-2314.69,0.00045479,60]
[332838347,1721562551284,-993.91,0.00045479,60]
[332838348,1721562551320,-507.38052281,0.00045479,60]
[332838349,1721562551356,-500.0,0.00045479,60]
[332838350,1721562551393,-500.0,0.00045479,60]
[332838351,1721562551428,-2457.36,0.00045479,60]
[332838352,1721562551639,-557.62,0.00045479,60]
[332838353,1721562551684,-500.0,0.00045479,60]
[332838354,1721562551721,-500.0,0.00045479,60]
[332838355,1721562551757,-692.68,0.00045479,60]
[332838356,1721562551792,-500.0,0.00045479,60]
[332838357,1721562551830,-500.0,0.00045479,60]
[332838358,1721562551866,-500.0,0.00045479,60]
[332838359,1721562551902,-1338.07,0.00045479,60]
[332838360,1721562551939,-789.11,0.00045479,60]
[332838361,1721562551978,-1241.72,0.00045479,60]
[332838362,1721562552015,-1701.55,0.00045479,60]
[332838363,1721562552050,-1872.58,0.00045479,60]
[332838364,1721562552088,-1631.15,0.00045479,60]